fUSD/lending_fUSD_20241208
["ID","MTS","AMOUNT","RATE_DAILY","PERIOD"]
[344640804,1733657442638,-214.87833491,0.00023,4]
[344640805,1733657442647,-150.0,0.00023,4]
[344640806,1733657442657,-273.85860361,0.00023,4]
[344640807,1733657442666,-150.0,0.00023,4]
[344640808,1733657442675,-158.0,0.00023,8]
[344640809,1733657442684,-158.0,0.00023,8]
[344640810,1733657442693,-150.0,0.00023,4]
[344640811,1733657442702,-150.0,0.00023,4]
[344640812,1733657442711,-365.0,0.00023,2]
[344640813,1733657442721,-1776682.30009964,0.00023,5]
[344640818,1733657442892,-50052.59976041,0.00023,5]
[344640819,1733657442934,-52442.3632966,0.00023,5]
[344640820,1733657442945,-4139.91120943,0.00023,5]
[344640821,1733657442957,-994.430682,0.00023,5]
[344640822,1733657442978,-335.0,0.00023,5]
[344640823,1733657442990,-500.13024575,0.00023,5]
[344640824,1733657443002,-3037.94936418,0.00023,5]
[344640825,1733657443012,-1598.01901419,0.00023,5]
[344640826,1733657443025,-18609.74570184,0.00023,5]
[344640827,1733657443233,-5491.59679868,0.00023,5]
[344640828,1733657443245,-5015.91350029,0.00023,5]
[344640829,1733657443257,-4154.94033391,0.00023,5]
[344640830,1733657443271,-3007.96731577,0.00023,5]
[344640834,1733657443394,-500.72000001,0.00023,5]
[344640835,1733657443407,-9153.80000013,0.00023,5]
[344640836,1733657443418,-460.41488701,0.00023,5]
[344640837,1733657443578,-34115.72265,0.00023,5]
[344640838,1733657443647,-1301.09983481,0.00023,5]
[344640839,1733657445898,-553.0,0.00023,2]
[344640840,1733657445907,-444.37346228,0.00023,5]
[344640841,1733657445918,-1282.6102062,0.00023,5]
[344640842,1733657446046,-1129.29626058,0.00023,5]
[344640843,1733657446057,-3594.11521696,0.00023,5]
[344640844,1733657446068,-5999.99999895,0.00023,5]
[344640845,1733657446079,-4164.02500324,0.00023,5]
[344640846,1733657446123,-1967.0709678,0.00023,5]
[344640847,1733657446240,-12293.0,0.00023,5]
[344640871,1733658632187,-532.13,0.00019541,2]
[344640872,1733658632198,-200.0,0.00021315,2]
[344640873,1733658632208,-300.0,0.00021343,2]
[344640874,1733658632217,-8937.76240412,0.00021344,2]
[344640875,1733658632228,-749.0,0.00021344,2]
[344640876,1733658632240,-413.21193929,0.00021344,2]
[344640877,1733658632251,-1373.6,0.00021344,2]
[344640878,1733658632289,-12426.42565659,0.00021344,2]
[344640879,1733658632299,-1000.0,0.00021393,2]
[344640880,1733658632308,-150.0,0.00021452,2]
[344640881,1733658632318,-250.0,0.00021462,2]
[344640882,1733658632327,-160.0,0.00021499,2]
[344640883,1733658632337,-265.12,0.00021508,2]
[344640884,1733658632347,-494.2,0.00021511,2]
[344640885,1733658632356,-250.0,0.00021515,2]
[344640886,1733658632366,-12963.4,0.00021534,2]
[344640887,1733658632375,-852.03,0.00021591,2]
[344640888,1733658632384,-284.73,0.00021644,30]
[344640889,1733658632394,-1852.42,0.00021656,2]
[344640890,1733658632405,-532.13,0.00021805,2]
[344640891,1733658632415,-282.652,0.0002185,2]
[344640892,1733658632425,-150.0,0.00021872,2]
[344640893,1733658632435,-417.3,0.00021918,2]
[344640894,1733658632445,-10331.7905,0.00021982,2]
[344640895,1733658632456,-150.00000052,0.00022,2]
[344640896,1733658632465,-82993.03430859,0.00022,10]
[344640897,1733658632477,-17831.71851626,0.00022,10]
[344640898,1733658632490,-99672.49541199,0.00022,10]
[344640899,1733658632503,-1593.15161709,0.00022,10]
[344640910,1733658638013,-3459.08069909,0.00022,10]
[344640911,1733658638301,-11247.0,0.00022,10]
[344640912,1733658638479,-3092.43278865,0.00022,10]
[344640918,1733658640111,-293.47358695,0.00022,10]
[344640919,1733658640123,-1600.65,0.00022,10]
[344640920,1733658640187,-17279.48307138,0.00022,10]
[344640921,1733658640196,-1000.0,0.00022021,2]
[344640922,1733658640206,-866.4656,0.0002246,2]
[344640923,1733658640215,-160.0,0.0002256,2]
[344640924,1733658640395,-166.41,0.00022642,2]
[344640925,1733658640409,-314.3,0.00022667,2]
[344640926,1733658640420,-3000.0,0.000227,2]
[344640927,1733658640430,-1620.161,0.000228,2]
[344640928,1733658640439,-500.0,0.00022815,2]
[344640929,1733658640449,-500.0,0.00022816,2]
[344640930,1733658640458,-3648.1762,0.00022898,2]
[344640933,1733658640468,-633.5,0.00022973,2]
[344640935,1733658640477,-238.31210342,0.00022973,2]
[344640937,1733658640489,-998.905,0.00022973,2]
[344640939,1733658640500,-497.1326016,0.00022973,2]
[344640941,1733658640511,-260.42300003,0.00022973,2]
[344640943,1733658640527,-9.22729495,0.00022973,2]
[344640945,1733658640537,-150.0,0.00022973,2]
[344640947,1733658640547,-563.0,0.00022973,2]
[344640949,1733658640556,-363.77271505,0.00022973,2]
[344640951,1733658640567,-1529.22728495,0.00022973,2]
[344640953,1733658640577,-3876.22525089,0.00022973,2]
[344640990,1733658643141,-159.01,0.00021998,2]
[344640991,1733658643150,-9838.77474911,0.00022973,2]
[344640992,1733658643159,-150.0,0.00022973,2]
[344640993,1733658643169,-1167.7547411,0.0002299,2]
[344640994,1733658643179,-1167.7547411,0.0002299,2]
[344640995,1733658643188,-1167.7547411,0.0002299,2]
[344640996,1733658643197,-500.0,0.00022998,2]
[344640997,1733658643206,-500.0,0.00022998,2]
[344640998,1733658643215,-500.0,0.00022998,2]
[344640999,1733658643224,-500.0,0.00022998,2]
[344641000,1733658643233,-500.0,0.00022998,2]
[344641001,1733658643243,-500.0,0.00022998,2]
[344641002,1733658643252,-500.0,0.00022998,2]
[344641003,1733658643261,-500.0,0.00022998,2]
[344641004,1733658643270,-500.0,0.00022998,2]
[344641005,1733658643279,-500.0,0.00022998,2]
[344641006,1733658643287,-500.0,0.00022998,2]
[344641007,1733658643296,-500.0,0.00022998,2]
[344641008,1733658643305,-500.0,0.00022998,2]
[344641009,1733658643314,-500.0,0.00022998,2]
[344641010,1733658643323,-500.0,0.00022998,2]
[344641011,1733658643332,-500.0,0.00022998,2]
[344641012,1733658643341,-500.0,0.00022998,2]
[344641013,1733658643350,-500.0,0.00022998,2]
[344641014,1733658643359,-500.0,0.00022998,2]
[344641015,1733658643368,-408.52287595,0.00022998,2]
[344641016,1733658643379,-91.47712405,0.00022998,2]
[344641017,1733658643389,-500.0,0.00022998,2]
[344641018,1733658643398,-500.0,0.00022998,2]
[344641019,1733658643407,-500.0,0.00022998,2]
[344641020,1733658643419,-500.0,0.00022998,2]
[344641021,1733658643430,-500.0,0.00022998,2]
[344641022,1733658643439,-500.0,0.00022998,2]
[344641023,1733658643450,-500.0,0.00022998,2]
[344641024,1733658643459,-500.0,0.00022998,2]
[344641025,1733658643468,-500.0,0.00022998,2]
[344641026,1733658643476,-500.0,0.00022998,2]
[344641027,1733658643486,-500.0,0.00022998,2]
[344641028,1733658643495,-500.0,0.00022998,2]
[344641029,1733658643505,-273.90212288,0.00022998,2]
[344641030,1733658643515,-226.09787712,0.00022998,2]
[344641031,1733658643524,-500.0,0.00022998,2]
[344641032,1733658643533,-500.0,0.00022998,2]
[344641033,1733658643542,-500.0,0.00022998,2]
[344641034,1733658643550,-424.10485881,0.00022998,2]
[344641035,1733658643561,-75.89514119,0.00022998,2]
[344641036,1733658643570,-500.0,0.00022998,2]
[344641037,1733658643578,-500.0,0.00022998,2]
[344641038,1733658643587,-500.0,0.00022998,2]
[344641039,1733658643596,-500.0,0.00022998,2]
[344641040,1733658643605,-500.0,0.00022998,2]
[344641041,1733658643614,-500.0,0.00022998,2]
[344641042,1733658643624,-500.0,0.00022998,2]
[344641043,1733658643633,-234.01767436,0.00022998,2]
[344641044,1733658643644,-265.98232564,0.00022998,2]
[344641045,1733658643654,-500.0,0.00022998,2]
[344641046,1733658643663,-500.0,0.00022998,2]
[344641047,1733658643673,-500.0,0.00022998,2]
[344641048,1733658643682,-500.0,0.00022998,2]
[344641049,1733658643691,-500.0,0.00022998,2]
[344641050,1733658643700,-500.0,0.00022998,2]
[344641051,1733658643710,-500.0,0.00022998,2]
[344641052,1733658643719,-500.0,0.00022998,2]
[344641053,1733658643729,-500.0,0.00022998,2]
[344641054,1733658643738,-500.0,0.00022998,2]
[344641055,1733658643747,-500.0,0.00022998,2]
[344641056,1733658643756,-230.22426376,0.00022998,2]
[344641057,1733658643767,-269.77573624,0.00022998,2]
[344641058,1733658643776,-500.0,0.00022998,2]
[344641059,1733658643785,-500.0,0.00022998,2]
[344641060,1733658643795,-500.0,0.00022998,2]
[344641061,1733658643804,-500.0,0.00022998,2]
[344641062,1733658643814,-500.0,0.00022998,2]
[344641063,1733658643824,-500.0,0.00022998,2]
[344641064,1733658643833,-500.0,0.00022998,2]
[344641065,1733658643842,-500.0,0.00022998,2]
[344641066,1733658643851,-500.0,0.00022998,2]
[344641067,1733658643860,-500.0,0.00022998,2]
[344641068,1733658643869,-500.0,0.00022998,2]
[344641069,1733658643877,-500.0,0.00022998,2]
[344641071,1733658643886,-500.0,0.00022998,2]
[344641072,1733658643895,-500.0,0.00022998,2]
[344641073,1733658643905,-500.0,0.00022998,2]
[344641074,1733658643914,-500.0,0.00022998,2]
[344641075,1733658643924,-500.0,0.00022998,2]
[344641076,1733658643933,-450.0,0.00022999,2]
[344641077,1733658643944,-446.13909263,0.00022999,2]
[344641078,1733658643953,-520.11610945,0.00022999,2]
[344641079,1733658643963,-500.0,0.00022999,2]
[344641080,1733658643973,-500.0,0.00022999,2]
[344641081,1733658643982,-500.0,0.00022999,2]
[344641082,1733658643992,-500.0,0.00022999,2]
[344641083,1733658644001,-500.0,0.00022999,2]
[344641084,1733658644010,-500.0,0.00022999,2]
[344641085,1733658644019,-500.0,0.00022999,2]
[344641086,1733658644028,-500.0,0.00022999,2]
[344641087,1733658644038,-500.0,0.00022999,2]
[344641088,1733658644047,-394.47629336,0.00022999,2]
[344641089,1733658644057,-288.28927796,0.00022999,2]
[344641090,1733658644067,-500.0,0.00022999,2]
[344641091,1733658644077,-283.67,0.00022999,2]
[344641092,1733658644087,-500.0,0.00022999,2]
[344641093,1733658644096,-500.0,0.00022999,2]
[344641094,1733658644104,-500.0,0.00022999,2]
[344641095,1733658644114,-500.0,0.00022999,2]
[344641096,1733658644123,-500.0,0.00022999,2]
[344641097,1733658644132,-500.0,0.00022999,2]
[344641098,1733658644142,-383.78,0.00022999,2]
[344641099,1733658644151,-161.91,0.00022999,2]
[344641100,1733658644161,-500.0,0.00022999,2]
[344641101,1733658644170,-500.0,0.00022999,2]
[344641102,1733658644180,-229.96,0.00022999,2]
[344641103,1733658644189,-589.30282765,0.00022999,2]
[344641104,1733658644199,-500.0,0.00022999,2]
[344641105,1733658644208,-500.0,0.00022999,2]
[344641106,1733658644217,-500.0,0.00022999,2]
[344641107,1733658644227,-440.66875797,0.00022999,2]
[344641108,1733658644235,-500.0,0.00022999,2]
[344641109,1733658644244,-500.0,0.00022999,2]
[344641110,1733658644253,-304.92,0.00022999,2]
[344641111,1733658644262,-500.0,0.00022999,2]
[344641112,1733658644271,-500.0,0.00022999,2]
[344641113,1733658644281,-474.55580504,0.00022999,2]
[344641114,1733658644290,-21660.85622499,0.00023,2]
[344641115,1733658644301,-563.04932207,0.00023,2]
[344641116,1733658644316,-54486.60268039,0.00023,2]
[344641117,1733658644326,-5194.1298,0.00023,2]
[344641118,1733658644341,-16747.30504466,0.00023,2]
[344641119,1733658644356,-28513.91017038,0.00023,2]
[344641122,1733658646092,-2778.88867821,0.00023,2]
[344641123,1733658646104,-4919.07120143,0.00023,2]
[344641124,1733658646115,-729.12371714,0.00023,2]
[344641125,1733658646134,-558.60398457,0.00023,2]
[344641126,1733658646145,-1556.4404694,0.00023,2]
[344641127,1733658646157,-413.0431218,0.00023,2]
[344641128,1733658646281,-1158.36,0.00023,2]
[344641129,1733658646293,-1162.71989057,0.00023,2]
[344641130,1733658646326,-740.40033588,0.00023,2]
[344641131,1733658646337,-1034.05360558,0.00023,2]
[344641178,1733659838108,-478.91,0.0001957,2]
[344641179,1733659838118,-11832.7728483,0.00021336,2]
[344641181,1733659838130,-5766.73556984,0.00021336,2]
[344641182,1733659838141,-3392.60158186,0.00021336,2]
[344641183,1733659838150,-250.0,0.00021365,2]
[344641184,1733659838160,-200.0,0.00021374,2]
[344641185,1733659838169,-3120.81,0.0002139,2]
[344641186,1733659838178,-250.0,0.00021394,2]
[344641187,1733659838188,-210.68191433,0.00021429,2]
[344641188,1733659838199,-6.91808567,0.00021429,2]
[344641189,1733659838209,-800.0,0.00021447,2]
[344641190,1733659838220,-150.0,0.00021447,2]
[344641191,1733659838230,-174.08,0.00021483,2]
[344641192,1733659838240,-181.64,0.0002155,2]
[344641193,1733659838250,-1019.03,0.00021578,2]
[344641194,1733659838259,-270.49,0.00021605,30]
[344641195,1733659838271,-478.91,0.00021834,2]
[344641196,1733659838281,-270.747,0.0002185,2]
[344641197,1733659838291,-200.0,0.00021869,2]
[344641198,1733659838300,-176.63,0.00021899,2]
[344641199,1733659838309,-200.0,0.000219,2]
[344641200,1733659838319,-347.75,0.00021918,2]
[344641201,1733659838329,-3185.76488872,0.00022,2]
[344641202,1733659838344,-1292.05259246,0.00022,2]
[344641203,1733659838355,-447.54462901,0.00022,2]
[344641214,1733659840248,-1112.32413503,0.00022,2]
[344641215,1733659840349,-7554.31375478,0.00022,2]
[344641216,1733659840360,-998.19,0.00022091,2]
[344641217,1733659840369,-986.21,0.00022111,2]
[344641218,1733659840378,-498.57,0.00022118,2]
[344641219,1733659840388,-166.68,0.00022128,2]
[344641220,1733659840398,-150.0,0.00022221,2]
[344641221,1733659840407,-217.6,0.00022221,2]
[344641223,1733659840417,-423.0,0.00022548,2]
[344641225,1733659840426,-934.24864642,0.00022645,2]
[344641234,1733659843168,-259.19135358,0.00022645,2]
[344641235,1733659843177,-870.93,0.00022645,2]
[344641236,1733659843185,-502.34,0.000227,2]
[344641237,1733659843195,-492.24,0.000227,2]
[344641238,1733659843203,-507.48,0.000227,2]
[344641239,1733659843212,-463.38353503,0.000227,2]
[344641240,1733659843223,-31.51646497,0.000227,2]
[344641241,1733659843232,-496.05,0.000227,2]
[344641242,1733659843241,-3000.0,0.000227,2]
[344641243,1733659843250,-159.81808854,0.00022788,2]
[344641244,1733659843261,-6.84191146,0.00022788,2]
[344641245,1733659843271,-1491.966,0.00022815,2]
[344641246,1733659843281,-500.0,0.00022816,2]
[344641247,1733659843290,-199.78,0.00022834,2]
[344641248,1733659843299,-200.22,0.00022913,2]
[344641249,1733659843308,-298.499,0.00022973,2]
[344641250,1733659843318,-1262.0,0.00022973,2]
[344641251,1733659843327,-150.0,0.00022973,2]
[344641252,1733659843504,-1000.0,0.00022999,2]
[344641253,1733659843513,-500.0,0.00022999,2]
[344641254,1733659843523,-500.0,0.00022999,2]
[344641255,1733659843532,-433.21044771,0.00022999,2]
[344641256,1733659843541,-292.87376924,0.00022999,2]
[344641257,1733659843550,-114.48837821,0.00022999,2]
[344641258,1733659843562,-385.51162179,0.00022999,2]
[344641259,1733659843570,-500.0,0.00022999,2]
[344641260,1733659843579,-500.0,0.00022999,2]
[344641261,1733659843589,-280.46640833,0.00022999,2]
[344641262,1733659843603,-219.53359167,0.00022999,2]
[344641263,1733659843612,-275.12623176,0.00022999,2]
[344641264,1733659843622,-500.0,0.00022999,2]
[344641265,1733659843631,-380.63880596,0.00022999,2]
[344641266,1733659843640,-531.2833519,0.00022999,2]
[344641268,1733659843649,-521.83848089,0.00022999,2]
[344641270,1733659843659,-500.0,0.00022999,2]
[344641271,1733659843669,-511.91573185,0.00022999,2]
[344641273,1733659843678,-619.55042803,0.00022999,2]
[344641275,1733659843687,-529.96366387,0.00022999,2]
[344641276,1733659843696,-512.16131661,0.00022999,2]
[344641277,1733659843705,-517.47986661,0.00022999,2]
[344641278,1733659843714,-350.70131614,0.00022999,2]
[344641279,1733659843723,-524.98274995,0.00022999,2]
[344641280,1733659843732,-500.0,0.00022999,2]
[344641281,1733659843741,-498.90904423,0.00022999,2]
[344641282,1733659843750,-155.91542053,0.00023,2]
[344641283,1733659843765,-347.08457947,0.00023,2]
[344641284,1733659843775,-113.37542203,0.00023,2]
[344641285,1733659843790,-744.58178426,0.00023,2]
[344641286,1733659843799,-2778.98487845,0.00023,2]
[344641287,1733659843812,-3015.80137416,0.00023,2]
[344641288,1733659846208,-1011.79,0.00022,2]
[344641289,1733659846217,-3226.60451363,0.00023,2]
[344641290,1733659846314,-595.573036,0.00023,2]
[344641291,1733659846325,-254.499998,0.00023,2]
[344641315,1733660880310,2398666.55327239,0.00013,2]
[344641325,1733661003988,150.0,0.00013,2]
[344641326,1733661004212,150.0,0.00013,2]
[344641327,1733661004427,150.0,0.00013,2]
[344641328,1733661004608,150.0,0.00013,2]
[344641329,1733661004808,150.0,0.00013,2]
[344641330,1733661005014,150.0,0.00013,2]
[344641331,1733661005261,150.0,0.00013,2]
[344641332,1733661005449,266.44050938,0.00013,2]
[344641364,1733661032646,-155.07,0.00016998,2]
[344641366,1733661032656,-431.01,0.0001902,2]
[344641368,1733661032666,-1216.92364209,0.00020822,2]
[344641394,1733661038333,-783.07635791,0.00020822,2]
[344641395,1733661038344,-200.0,0.00020832,2]
[344641396,1733661038354,-824.74,0.00020858,2]
[344641397,1733661038363,-580.78364729,0.00021024,2]
[344641398,1733661038390,-919.21635271,0.00021024,2]
[344641399,1733661038399,-250.0,0.00021074,2]
[344641400,1733661038408,-150.0,0.00021095,2]
[344641401,1733661038417,-669.63364729,0.00021146,2]
[344641402,1733661038448,-330.36635271,0.00021146,2]
[344641403,1733661038457,-250.0,0.00021195,2]
[344641404,1733661038466,-300.0,0.00021267,2]
[344641405,1733661038476,-9997.08,0.00021268,2]
[344641406,1733661038485,-384.61929729,0.00021276,2]
[344641407,1733661038498,-115.38070271,0.00021276,2]
[344641408,1733661038507,-431.01,0.00021284,2]
[344641409,1733661038517,-256.96,0.00021317,30]
[344641410,1733661038526,-939.01,0.00021347,2]
[344641411,1733661038535,-163.2,0.0002137,2]
[344641412,1733661038546,-107.46087099,0.00021506,2]
[344641413,1733661038557,-9601.77275248,0.00021506,2]
[344641414,1733661038675,-519.00001,0.00021506,2]
[344641415,1733661038687,-968.68111151,0.00021506,2]
[344641416,1733661040418,-862.3159344,0.00021506,2]
[344641417,1733661040429,-6214.19139388,0.00021506,2]
[344641418,1733661040441,-5080.63792674,0.00021506,2]
[344641419,1733661040450,-150.0,0.00021675,2]
[344641420,1733661040459,-250.0,0.00021752,2]
[344641421,1733661040469,-275.282,0.0002185,2]
[344641422,1733661040478,-150.0,0.00021887,2]
[344641423,1733661040487,-2504.35301442,0.00021888,2]
[344641424,1733661040498,-1399.4055596,0.00021888,2]
[344641425,1733661040509,-3332.21552514,0.00021888,2]
[344641426,1733661040588,-2558.90975247,0.00021888,2]
[344641432,1733661043488,-4428.33940147,0.00021888,2]
[344641433,1733661043500,-2408.22180282,0.00021888,2]
[344641434,1733661043511,-3218.61570092,0.00021888,2]
[344641435,1733661043522,-258.36999998,0.00021888,2]
[344641436,1733661043651,-8470.51994912,0.00021888,2]
[344641437,1733661043663,-2917.19495534,0.00021888,2]
[344641438,1733661043675,-10769.37411646,0.00021888,2]
[344641439,1733661043683,-200.0,0.000219,2]
[344641440,1733661043692,-289.79,0.00021918,2]
[344641441,1733661043702,-988.72,0.00021937,2]
[344641442,1733661043711,-1013.37,0.00021961,2]
[344641443,1733661043720,-2670.65976033,0.00021973,2]
[344641444,1733661043736,-11044.34023967,0.00021973,2]
[344641445,1733661043746,-1166.0,0.00021973,2]
[344641446,1733661043755,-150.0,0.00021973,2]
[344641447,1733661043765,-34428.0,0.00021998,2]
[344641448,1733661043774,-770.98,0.00022,10]
[344641449,1733661043783,-4000.0,0.00022,2]
[344641450,1733661043792,-166.68,0.00022318,2]
[344641451,1733661043801,-163.2,0.00022424,2]
[344641452,1733661043810,-1006.2,0.00022512,2]
[344641453,1733661043819,-23401.46684588,0.00022655,2]
[344641454,1733661043829,-1007.4,0.00022693,2]
[344641455,1733661043838,-500.0,0.00022739,2]
[344641456,1733661043848,-653.54262325,0.00022769,2]
[344641457,1733661043858,-1000.0,0.00022769,2]
[344641458,1733661043867,-1462.599,0.00022799,2]
[344641459,1733661043876,-179.983,0.00022799,2]
[344641460,1733661043885,-214.17695879,0.000228,3]
[344641461,1733661043894,-500.0,0.00022816,2]
[344641462,1733661043903,-8320.1882674,0.00022888,2]
[344641463,1733661043918,-6444.78056939,0.00022888,2]
[344641464,1733661043929,-4945.25372457,0.00022888,2]
[344641465,1733661043944,-289.77743864,0.00022888,2]
[344641467,1733661043953,-500.0,0.00022899,2]
[344641468,1733661043962,-299.24350411,0.00022899,2]
[344641469,1733661043974,-200.75649589,0.00022899,2]
[344641470,1733661043984,-500.0,0.00022899,2]
[344641471,1733661043994,-619.69155641,0.00022899,2]
[344641472,1733661044003,-456.08593733,0.00022899,2]
[344641474,1733661044012,-3281.5856,0.000229,2]
[344641475,1733661044022,-15916.70052648,0.000229,2]
[344641478,1733661046339,-2004.0,0.00021973,2]
[344641479,1733661046348,-7981.1,0.000229,2]
[344641480,1733661046396,-510.137002,0.000229,2]
[344641481,1733661046456,-790.0,0.000229,2]
[344641482,1733661046467,-4476.6342066,0.000229,2]
[344641483,1733661046478,-1327.99,0.000229,2]
[344641484,1733661046489,-513.5865609,0.000229,2]
[344641485,1733661046500,-4560.0,0.000229,2]
[344641486,1733661046511,-5862.55160518,0.000229,2]
[344641487,1733661046527,-3878.28175399,0.000229,2]
[344641488,1733661046538,-425.16,0.000229,2]
[344641489,1733661046573,-2276.79999987,0.000229,2]
[344641490,1733661079395,357.58596023,0.00014993,2]
[344641491,1733661079696,357.58596023,0.00014999,2]
[344641492,1733661080002,357.58596023,0.00014977,2]
[344641493,1733661080280,357.58596023,0.00014966,2]
[344641494,1733661080605,357.58596023,0.00014998,2]
[344641495,1733661081013,357.58596023,0.00014975,2]
[344641496,1733661098872,200.0,0.00014981,2]
[344641497,1733661099437,200.0,0.00014999,2]
[344641498,1733661099728,200.0,0.00015,2]
[344641499,1733661100060,200.0,0.00014978,2]
[344641500,1733661100351,200.0,0.0001497,2]
[344641501,1733661100644,200.0,0.00014968,2]
[344641502,1733661117905,757.04643597,0.00014969,2]
[344641503,1733661118235,757.04643597,0.00014969,2]
[344641504,1733661118512,757.04643597,0.00014997,2]
[344641505,1733661118787,757.04643597,0.00014965,2]
[344641506,1733661119098,757.04643597,0.00014999,2]
[344641507,1733661119413,757.04643597,0.00014988,2]
[344641508,1733661123755,17325.98034704,0.00014957,2]
[344641509,1733661124177,17325.98034704,0.00014983,2]
[344641510,1733661124566,17325.98034704,0.00014961,2]
[344641511,1733661124871,17325.98034704,0.00014987,2]
[344641512,1733661125170,17325.98034704,0.00014955,2]
[344641513,1733661125473,17325.98034704,0.00014964,2]
[344641514,1733661131841,2642.25477158,0.00014962,2]
[344641515,1733661132172,2642.25477158,0.0001497,2]
[344641516,1733661132479,2642.25477158,0.00014976,2]
[344641517,1733661132784,2642.25477158,0.0001498,2]
[344641518,1733661133092,2642.25477158,0.00014985,2]
[344641519,1733661133419,2642.25477158,0.00014999,2]
[344641520,1733661141030,462.35271459,0.00014959,2]
[344641521,1733661141323,462.35271459,0.00014975,2]
[344641522,1733661141610,462.35271459,0.00014996,2]
[344641523,1733661141931,462.35271459,0.00014997,2]
[344641524,1733661142233,462.35271459,0.00014978,2]
[344641525,1733661142510,462.35271459,0.00014999,2]
[344641526,1733661149540,892.32712267,0.00014972,2]
[344641527,1733661149658,892.32712267,0.00014984,2]
[344641528,1733661150018,892.32712267,0.00014998,2]
[344641529,1733661150341,892.32712267,0.00014958,2]
[344641530,1733661150517,1950.85455252,0.00014994,2]
[344641531,1733661150689,892.32712267,0.0001498,2]
[344641532,1733661150810,1950.85455252,0.00014981,2]
[344641533,1733661151023,892.32712267,0.00014961,2]
[344641534,1733661151110,1950.85455252,0.00014997,2]
[344641535,1733661151456,1950.85455252,0.0001497,2]
[344641536,1733661151729,1950.85455252,0.00014993,2]
[344641537,1733661152023,1950.85455252,0.00014998,2]
[344641538,1733661161678,1463.14091439,0.00014967,2]
[344641539,1733661162002,1463.14091439,0.00014975,2]
[344641540,1733661162290,1463.14091439,0.0001498,2]
[344641541,1733661162576,1463.14091439,0.0001496,2]
[344641542,1733661162869,1463.14091439,0.0001496,2]
[344641543,1733661163203,1463.14091439,0.00014975,2]
[344641544,1733661185487,13804.22743459,0.0001496,2]
[344641545,1733661185811,13804.22743459,0.00014968,2]
[344641546,1733661186111,13804.22743459,0.00014982,2]
[344641547,1733661186424,13804.22743459,0.0001499,2]
[344641548,1733661186738,13804.22743459,0.00014973,2]
[344641549,1733661187033,13804.22743459,0.00014988,2]
[344641550,1733661193412,1981.69107868,0.00014983,2]
[344641551,1733661193748,1981.69107868,0.00014984,2]
[344641552,1733661194116,1981.69107868,0.00014996,2]
[344641553,1733661194422,1981.69107868,0.00014989,2]
[344641554,1733661194735,1981.69107868,0.00014983,2]
[344641555,1733661195013,1981.69107868,0.00014988,2]
[344641556,1733661202131,346.76453595,0.00014969,2]
[344641557,1733661202474,346.76453595,0.00014965,2]
[344641558,1733661202782,346.76453595,0.00014977,2]
[344641559,1733661203070,346.76453595,0.00014969,2]
[344641560,1733661203346,346.76453595,0.00014997,2]
[344641561,1733661203892,346.76453595,0.00014967,2]
[344641562,1733661210729,669.245342,0.00014995,2]
[344641563,1733661211005,669.245342,0.00014998,2]
[344641564,1733661211324,669.245342,0.00014963,2]
[344641565,1733661211616,669.245342,0.00014987,2]
[344641566,1733661211935,669.245342,0.00014968,2]
[344641567,1733661212254,669.245342,0.0001497,2]
[344641568,1733661223097,1097.3556858,0.0001496,2]
[344641569,1733661223426,1097.3556858,0.00014975,2]